Workbook

Sheet DCA Calculator
A1: How Much to Buy Calculator | J1: Extra editable ladder: up to 8 positions
A2: Edit the blue input cells. The calculator will automatically calculate each buy level, amount invested, shares, cumulative shares, and blended average cost. | J2: Position | K2: Drop From High | L2: Entry Price | M2: Allocation % | N2: Investment Amount
J3: 1 | K3: 28.50% | L3: =IF(K3="","",$B$6*(1-K3)) -> $77.94 | M3: 17.34% | N3: =IF(M3="","",$B$5*M3) -> $17.34
A4: Stock Name | B4: NVDA | D4: Summary if all positions trigger | J4: 2 | K4: 37.00% | L4: $68.67 | M4: 21.68% | N4: $21.68
A5: Total Amount Dedicated | B5: $100.00 | D5: Total Invested | E5: =SUM(D13:D16) -> $100.00 | G5: Total Shares | H5: =SUM(E13:E16) -> 1.8 | J5: 3 | K5: 48.00% | L5: $56.68 | M5: 27.10% | N5: $27.10
A6: High Point To Measure From | B6: $109.00 | D6: Average Cost | E6: =IFERROR(E5/H5,0) -> $54.52 | G6: Lowest Entry | H6: =MIN(C13:C16) -> $41.42 | J6: 4 | K6: 62.00% | L6: $41.42 | M6: 33.88% | N6: $33.88
A7: Number of Positions | D7: Final Drop % | E7: =MAX(B13:B16) -> 62.00% | G7: Cash Unused | H7: =B5-E5 -> $0.00 | J7: 5
A8: Currency Symbol | B8: USD | D8: Breakeven Gain From Lowest | E8: =IFERROR(E6/H6-1,0) -> 31.62% | G8: Positions Used | H8: =COUNT(C13:C16) -> 4 | J8: 6
J9: 7
J10: 8
A12: Position | B12: Drop From High | C12: Entry Price | D12: Investment Amount | E12: Shares To Buy | F12: Cumulative Shares | G12: Allocation % | H12: Notes
A13: 1 | B13: 28.50% | C13: =$B$6*(1-B13) -> $77.94 | D13: =$B$5*G13 -> $17.34 | E13: =IFERROR(D13/C13,0) -> 0.2 | F13: =SUM($E$13:E13) -> 0.2 | G13: 17.34%
A14: 2 | B14: 37.00% | C14: =$B$6*(1-B14) -> $68.67 | D14: =$B$5*G14 -> $21.68 | E14: =IFERROR(D14/C14,0) -> 0.3 | F14: =SUM($E$13:E14) -> 0.5 | G14: 21.68%
A15: 3 | B15: 48.00% | C15: =$B$6*(1-B15) -> $56.68 | D15: =$B$5*G15 -> $27.10 | E15: =IFERROR(D15/C15,0) -> 0.5 | F15: =SUM($E$13:E15) -> 1.0 | G15: 27.10%
A16: 4 | B16: 62.00% | C16: =$B$6*(1-B16) -> $41.42 | D16: =$B$5*G16 -> $33.88 | E16: =IFERROR(D16/C16,0) -> 0.8 | F16: =SUM($E$13:E16) -> 1.8 | G16: 33.88%
A19: How it works
A20: 1 | B20: Blue cells are editable inputs: stock name, total cash, high price, drop %, and allocation %.
A21: 2 | B21: Entry Price = High Point × (1 - Drop From High). Example: $208.82 × (1 - 28.5%) = $149.31.
A22: 3 | B22: Investment Amount = Total Amount × Allocation %. Change the allocation percentages if you want a more aggressive or conservative ladder.
A23: 4 | B23: Shares To Buy = Investment Amount ÷ Entry Price.
A24: 5 | B24: Average Cost = Total Invested ÷ Total Shares.

Sheet Formula Guide
A1: DCA Calculator Formula Guide
A3: Output | B3: Formula | C3: Example using screenshot | D3: Meaning
A4: Entry Price | B4: High Point × (1 - Drop %) | C4: $208.82 × (1 - 28.5%) = $149.31 | D4: Price where you plan to buy
A5: Investment Amount | B5: Total Amount × Allocation % | C5: $1,500 × 17.34% = $260.16 | D5: How much cash to put in that level
A6: Shares To Buy | B6: Investment Amount ÷ Entry Price | C6: $260.16 ÷ $149.31 = 1.7 shares | D6: Number of shares bought at that level
A7: Cumulative Shares | B7: Running total of shares | C7: 1.7 + 2.5 + 3.7 + 6.4 = 14.4 | D7: Total position size if levels trigger
A8: Average Cost | B8: Total Invested ÷ Total Shares | C8: $1,499.99 ÷ 14.4 = about $104.17 | D8: Your blended breakeven before fees
